fUSD/lending_fUSD_20240216
["ID","MTS","AMOUNT","RATE_DAILY","PERIOD"]
[314233914,1708109443306,-258.77,0.00034922,7]
[314233916,1708109443316,-7201.23687,0.00034931,2]
[314233918,1708109443330,-45633.728142,0.00034931,2]
[314233920,1708109443339,-4472.799758,0.00034931,2]
[314233922,1708109443349,-7253.959499,0.00034931,2]
[314233924,1708109443358,-613.85,0.00034931,2]
[314233926,1708109443367,-527.70170057,0.00034949,2]
[314233928,1708109443376,-168.13605804,0.00034968,2]
[314233930,1708109443385,-586.22,0.00034978,2]
[314233932,1708109443395,-2593.892948,0.00035,2]
[314233934,1708109443404,-155.60680606,0.00035,4]
[314233936,1708109443414,-155.0,0.00035,4]
[314233937,1708109443423,-1467.048182,0.00035,2]
[314233938,1708109443432,-1500.0,0.00035,3]
[314233939,1708109443441,-416.95,0.00035041,2]
[314233940,1708109443450,-258.77,0.00035059,7]
[314233941,1708109443459,-202.79866519,0.00035066,7]
[314233942,1708109443468,-199.725388,0.00035066,7]
[314233943,1708109443477,-1687.12445778,0.00035066,9]
[314233944,1708109443486,-9001.546087,0.00035068,2]
[314233945,1708109443495,-57042.160177,0.00035068,2]
[314233946,1708109443504,-5590.999697,0.00035068,2]
[314233947,1708109443513,-9067.449373,0.00035068,2]
[314233949,1708109443523,-166.86,0.00035086,2]
[314233951,1708109443532,-586.22,0.00035159,2]
[314233953,1708109443542,-100000.0,0.00035166,2]
[314233955,1708109443552,-900.0,0.00035166,2]
[314233957,1708109443561,-513.66,0.00035196,7]
[314233959,1708109443571,-2863.58390608,0.00035258,2]
[314233961,1708109443580,-517.85391455,0.0003526,2]
[314233963,1708109443590,-152.77213636,0.00035262,2]
[314233965,1708109443600,-165.55,0.00035285,2]
[314233967,1708109443610,-586.22,0.00035339,2]
[314233969,1708109443620,-12602.164523,0.00035342,2]
[314233971,1708109443629,-79859.024248,0.00035342,2]
[314233974,1708109443639,-7827.399577,0.00035342,2]
[314233976,1708109443649,-12694.429123,0.00035342,2]
[314233978,1708109443658,-1078.43,0.00035381,2]
[314233980,1708109443668,-155.0,0.0003547,2]
[314233982,1708109443677,-11273.89300089,0.00035489,2]
[314233984,1708109443687,-586.22,0.00035519,2]
[314233986,1708109443697,-15105.06661451,0.00035597,2]
[314233988,1708109443706,-3242.366185,0.000356,2]
[314233989,1708109443717,-1000.0,0.000356,2]
[314233992,1708109443727,-1833.810228,0.000356,2]
[314233994,1708109443736,-8000.0,0.000356,2]
[314233995,1708109443746,-203.69,0.00035608,2]
[314233997,1708109443755,-4098.71,0.00035621,2]
[314234000,1708109443765,-152.77213636,0.00035656,2]
[314234002,1708109443774,-1153.06465788,0.00035682,2]
[314234004,1708109443783,-586.22,0.000357,2]
[314234006,1708109443793,-177.9,0.00035725,2]
[314234008,1708109443802,-4289.91,0.00035798,2]
[314234010,1708109443812,-586.22,0.0003588,2]
[314234011,1708109443822,-517.85391455,0.00035902,2]
[314234013,1708109443833,-154.0,0.00035916,2]
[314234015,1708109443842,-527.70170057,0.00035941,2]
[314234017,1708109443853,-14402.47374,0.00036,2]
[314234019,1708109443863,-4539.312659,0.00036,2]
[314234021,1708109443872,-91267.456284,0.00036,2]
[314234023,1708109443882,-8945.599516,0.00036,2]
[314234025,1708109443891,-2567.334319,0.00036,2]
[314234028,1708109443900,-14507.918998,0.00036,2]
[314234030,1708109443909,-152.77213636,0.0003605,2]
[314234032,1708109443918,-586.22,0.0003606,2]
[314234034,1708109443928,-2416.16579633,0.00036131,9]
[314234036,1708109443937,-174.59,0.00036199,2]
[314234038,1708109443947,-586.22,0.0003624,2]
[314234040,1708109443956,-200.0,0.00036348,2]
[314234041,1708109443965,-586.22,0.00036421,2]
[314234044,1708109443975,-152.77213636,0.00036444,2]
[314234046,1708109443985,-48396.14204471,0.000365,5]
[314234048,1708109443994,-517.85391455,0.00036543,2]
[314234050,1708109444004,-177.9,0.00036575,2]
[314234052,1708109444013,-586.22,0.00036601,2]
[314234054,1708109444022,-1795.36661193,0.00036603,12]
[314234056,1708109444031,-2253.73388502,0.00036603,12]
[314234057,1708109444040,-10760.70842359,0.00036611,12]
[314234058,1708109444049,-7940.64433892,0.00036619,12]
[314234060,1708109444059,-13513.59660152,0.00036644,12]
[314234062,1708109444068,-586.22,0.00036781,2]
[314234064,1708109444077,-2863.58390608,0.00036837,2]
[314234066,1708109444087,-152.77213636,0.00036839,2]
[314234068,1708109444096,-155.0,0.0003684,2]
[314234070,1708109444105,-1450.6845652,0.00036845,8]
[314234072,1708109444114,-527.70170057,0.00036933,2]
[314234074,1708109444123,-586.22,0.00036962,2]
[314234076,1708109444133,-1550.0,0.00037,3]
[314234078,1708109444146,-8000.0,0.00037,2]
[314234080,1708109444155,-3000.0,0.0003705,2]
[314234082,1708109444164,-4289.91,0.00037075,2]
[314234083,1708109444174,-586.22,0.00037142,2]
[314234085,1708109444185,-517.85391455,0.00037185,2]
[314234087,1708109444194,-1153.06465788,0.00037207,2]
[314234090,1708109444204,-203.69,0.00037226,2]
[314234091,1708109444214,-152.77213636,0.00037233,2]
[314234093,1708109444225,-4098.71,0.00037265,2]
[314234095,1708109444234,-586.22,0.00037322,2]
[314234120,1708109444457,-177.9,0.00037426,2]
[314234123,1708109444472,-800.0,0.00037443,2]
[314234125,1708109444482,-2416.16579633,0.00037494,10]
[314234127,1708109444493,-586.22,0.00037503,2]
[314234129,1708109444503,-154.0,0.00037559,2]
[314234130,1708109444512,-152.77213636,0.00037627,2]
[314234132,1708109444522,-1078.43,0.00037644,2]
[314234135,1708109444532,-180.0,0.00037671,2]
[314234136,1708109444541,-586.22,0.00037683,2]
[314234139,1708109444552,-11273.89300089,0.00037685,2]
[314234140,1708109444562,-15105.06661451,0.00037777,2]
[314234142,1708109444571,-174.37222919,0.000378,7]
[314234144,1708109444581,-457.241599,0.000378,2]
[314234147,1708109444591,-6217.09755861,0.000378,2]
[314234148,1708109444601,-991.80230975,0.000378,2]
[314234150,1708109444611,-517.85391455,0.00037827,2]
[314234152,1708109444621,-454.04500799,0.0003789,2]
[314234154,1708109444631,-1513.81555941,0.00037897,2]
[314234156,1708109444640,-155.0,0.00037898,4]
[314234158,1708109444650,-10522.42810951,0.000379,2]
[314234160,1708109444660,-677543.278825,0.000379,3]
[314234162,1708109444670,-199.30256537,0.000379,2]
[314234165,1708109444679,-527.70170057,0.00037924,2]
[314234167,1708109444689,-900.0,0.00038,39]
[314234168,1708109444699,-169.0,0.00038,2]
[314234170,1708109444709,-152.77213636,0.00038021,2]
[314234172,1708109444719,-4289.91,0.00038352,2]
[314234174,1708109444729,-280.0,0.00038356,13]
[314234177,1708109444738,-151.0,0.00038356,7]
[314234178,1708109444749,-151.0,0.00038356,7]
[314234180,1708109444758,-151.0,0.00038356,7]
[314234182,1708109444767,-151.0,0.00038356,7]
[314234184,1708109444776,-151.0,0.00038356,7]
[314234186,1708109444785,-151.0,0.00038356,7]
[314234188,1708109444795,-151.0,0.00038356,7]
[314234190,1708109444804,-151.0,0.00038356,7]
[314234192,1708109444814,-151.0,0.00038356,7]
[314234194,1708109444823,-158.94204,0.00038356,7]
[314234196,1708109444833,-151.0,0.00038356,7]
[314234198,1708109444842,-151.0,0.00038356,7]
[314234200,1708109444851,-151.0,0.00038356,7]
[314234202,1708109444860,-151.0,0.00038356,7]
[314234204,1708109444869,-151.0,0.00038356,7]
[314234206,1708109444879,-151.0,0.00038356,7]
[314234208,1708109444888,-151.0,0.00038356,7]
[314234210,1708109444898,-151.0,0.00038356,7]
[314234212,1708109444907,-151.0,0.00038356,7]
[314234214,1708109444916,-151.0,0.00038356,7]
[314234216,1708109444925,-183.914651,0.00038356,7]
[314234218,1708109444934,-151.5,0.00038356,2]
[314234220,1708109444944,-151.0,0.00038356,7]
[314234222,1708109444953,-151.0,0.00038356,7]
[314234224,1708109444962,-151.0,0.00038356,7]
[314234226,1708109444971,-151.0,0.00038356,7]
[314234228,1708109444981,-151.0,0.00038356,7]
[314234230,1708109444991,-152.729267,0.00038356,7]
[314234233,1708109445000,-151.0,0.00038356,7]
[314234234,1708109445009,-151.0,0.00038356,7]
[314234236,1708109445019,-151.0,0.00038356,7]
[314234238,1708109445027,-151.0,0.00038356,7]
[314234240,1708109445037,-151.0,0.00038356,7]
[314234242,1708109445046,-151.0,0.00038356,7]
[314234244,1708109445055,-151.0,0.00038356,7]
[314234246,1708109445065,-151.0,0.00038356,7]
[314234248,1708109445075,-151.0,0.00038356,7]
[314234250,1708109445084,-151.0,0.00038356,7]
[314234252,1708109445093,-151.0,0.00038356,7]
[314234254,1708109445102,-151.0,0.00038356,7]
[314234256,1708109445111,-151.0,0.00038356,7]
[314234258,1708109445120,-198.3125,0.00038356,7]
[314234260,1708109445129,-185.859569,0.00038356,7]
[314234262,1708109445138,-151.0,0.00038356,7]
[314234264,1708109445151,-151.0,0.00038356,7]
[314234266,1708109445160,-151.0,0.00038356,7]
[314234268,1708109445169,-151.0,0.00038356,7]
[314234270,1708109445178,-151.0,0.00038356,7]
[314234272,1708109445187,-151.0,0.00038356,7]
[314234274,1708109445197,-151.0,0.00038356,7]
[314234276,1708109445207,-151.0,0.00038356,7]
[314234278,1708109445217,-151.0,0.00038356,7]
[314234280,1708109445226,-151.0,0.00038356,7]
[314234282,1708109445237,-151.0,0.00038356,7]
[314234284,1708109445247,-151.0,0.00038356,7]
[314234286,1708109445257,-151.0,0.00038356,7]
[314234288,1708109445266,-151.0,0.00038356,7]
[314234290,1708109445275,-151.0,0.00038356,7]
[314234293,1708109445285,-151.0,0.00038356,7]
[314234295,1708109445294,-682.89,0.00038356,15]
[314234296,1708109445303,-151.0,0.00038356,7]
[314234298,1708109445312,-151.0,0.00038356,7]
[314234300,1708109445321,-151.0,0.00038356,7]
[314234302,1708109445330,-151.0,0.00038356,7]
[314234304,1708109445339,-156.0,0.00038356,2]
[314234306,1708109445348,-151.0,0.00038356,7]
[314234308,1708109445358,-151.0,0.00038356,7]
[314234310,1708109445367,-151.0,0.00038356,7]
[314234312,1708109445377,-151.0,0.00038356,7]
[314234314,1708109445387,-151.0,0.00038356,7]
[314234316,1708109445396,-151.0,0.00038356,7]
[314234318,1708109445405,-151.0,0.00038356,7]
[314234320,1708109445415,-151.0,0.00038356,7]
[314234322,1708109445424,-151.0,0.00038356,7]
[314234324,1708109445433,-266.097727,0.00038356,7]
[314234326,1708109445442,-151.0,0.00038356,7]
[314234328,1708109445452,-151.0,0.00038356,7]
[314234330,1708109445461,-151.0,0.00038356,7]
[314234332,1708109445471,-151.0,0.00038356,7]
[314234334,1708109445480,-151.0,0.00038356,7]
[314234337,1708109445490,-151.0,0.00038356,7]
[314234339,1708109445499,-151.0,0.00038356,7]
[314234340,1708109445508,-151.0,0.00038356,7]
[314234341,1708109445517,-151.0,0.00038356,7]
[314234342,1708109445526,-151.0,0.00038356,7]
[314234343,1708109445535,-151.0,0.00038356,7]
[314234344,1708109445544,-151.0,0.00038356,7]
[314234345,1708109445553,-151.0,0.00038356,7]
[314234346,1708109445562,-151.0,0.00038356,7]
[314234348,1708109445571,-502.858801,0.00038356,2]
[314234349,1708109445580,-502.858801,0.00038356,2]
[314234350,1708109445589,-502.858801,0.00038356,2]
[314234352,1708109445598,-502.858801,0.00038356,2]
[314234354,1708109445607,-502.858801,0.00038356,2]
[314234356,1708109445616,-502.858801,0.00038356,2]
[314234358,1708109445626,-502.858801,0.00038356,2]
[314234360,1708109445635,-502.858801,0.00038356,2]
[314234363,1708109445644,-502.858801,0.00038356,2]
[314234365,1708109445654,-502.858801,0.00038356,2]
[314234367,1708109445663,-502.858801,0.00038356,2]
[314234369,1708109445672,-502.858801,0.00038356,2]
[314234371,1708109445681,-151.0,0.00038356,7]
[314234373,1708109445690,-151.0,0.00038356,7]
[314234375,1708109445699,-1000.0,0.000384,2]
[314234377,1708109445710,-4000.0,0.000384,2]
[314234380,1708109445720,-152.77213636,0.00038415,2]
[314234382,1708109445730,-2863.58390608,0.00038416,2]
[314234384,1708109445739,-1153.06465788,0.00038732,2]
[314234386,1708109445748,-152.77213636,0.00038809,2]
[314234388,1708109445758,-203.69,0.00038845,2]
[314234390,1708109445767,-2416.16579633,0.00038858,12]
[314234392,1708109445776,-527.70170057,0.00038916,2]
[314234394,1708109445786,-154.1,0.00038941,2]
[314234396,1708109445796,-1600.0,0.00039,3]
[314234398,1708109445805,-152.77213636,0.00039203,3]
[314234400,1708109445816,-162.16,0.0003926,2]
[314234402,1708109445826,-1000.0,0.00039309,2]
[314234405,1708109445835,-478.6723242,0.00039357,11]
[314234408,1708109445845,-1450.6845652,0.00039429,9]
[314234411,1708109445854,-3000.0,0.0003955,2]
[314234413,1708109445863,-152.77213636,0.00039597,5]
[314234415,1708109445873,-4289.91,0.0003963,2]
[314234417,1708109445882,-4000.0,0.000397,2]
[314234419,1708109445892,-11273.89300089,0.0003988,2]
[314234421,1708109445901,-527.70170057,0.00039908,2]
[314234423,1708109445910,-1078.43,0.00039908,2]
[314234425,1708109445919,-15105.06661451,0.00039957,2]
[314234427,1708109445928,-152.77213636,0.00039992,6]
[314234429,1708109445937,-2863.58390608,0.00039995,5]
[314234431,1708109445947,-100000.0,0.0004,20]
[314234433,1708109445957,-470.77891623,0.0004,2]
[314234435,1708109445966,-150.0,0.0004,2]
[314234438,1708109445975,-150.0,0.0004,2]
[314234440,1708109445985,-150.0,0.0004,2]
[314234442,1708109445994,-300.0,0.0004,5]
[314234444,1708109446003,-151.0,0.0004,7]
[314234446,1708109446012,-151.0,0.0004,7]
[314234447,1708109446022,-151.0,0.0004,7]
[314234450,1708109446031,-151.0,0.0004,7]
[314234451,1708109446041,-157.456469,0.0004,7]
[314234453,1708109446050,-151.0,0.0004,7]
[314234455,1708109446060,-151.0,0.0004,7]
[314234457,1708109446070,-151.0,0.0004,7]
[314234460,1708109446079,-502.858801,0.0004,2]
[314234461,1708109446089,-502.858801,0.0004,2]
[314234463,1708109446098,-2416.16579633,0.00040221,14]
[314234466,1708109446109,-309.89118593,0.00040237,4]
[314234467,1708109446119,-3690.1,0.00040238,5]
[314234470,1708109446128,-1153.06465788,0.00040257,2]
[314234472,1708109446138,-1426.0,0.0004029,2]
[314234474,1708109446151,-194.32092126,0.0004034,2]
[314234476,1708109446161,-151.0,0.00040341,7]
[314234478,1708109446171,-151.0,0.00040341,7]
[314234480,1708109446182,-151.0,0.00040341,7]
[314234481,1708109446191,-151.0,0.00040341,7]
[314234484,1708109446201,-151.0,0.00040341,7]
[314234486,1708109446211,-151.0,0.00040341,7]
[314234488,1708109446221,-151.0,0.00040341,7]
[314234490,1708109446231,-151.0,0.00040341,7]
[314234492,1708109446241,-454.04500799,0.00040347,2]
[314234494,1708109446252,-1024.87,0.00040347,10]
[314234496,1708109446262,-854.06,0.00040347,10]
[314234498,1708109446271,-30457.21440004,0.00040357,2]
[314234499,1708109446281,-175.90664113,0.00040357,120]
[314234502,1708109446291,-310.29418037,0.00040357,120]
[314234504,1708109446301,-189.52753996,0.00040357,2]
[314234505,1708109446310,-155.0,0.00040357,2]
[314234508,1708109446320,-1912.57502668,0.00040357,120]
[314234510,1708109446331,-4651.87061363,0.00040357,2]
[314234512,1708109446340,-1379.29320641,0.00040357,30]
[314234514,1708109446350,-310.0,0.00040357,2]
[314234516,1708109446360,-309.43027227,0.00040357,2]
[314234517,1708109446369,-8845.64249399,0.00040357,2]
[314234520,1708109446378,-550.0,0.00040357,2]
[314234521,1708109446388,-1005.80589627,0.00040357,2]
[314234523,1708109446397,-10307.91125816,0.00040357,2]
[314234526,1708109446407,-163103.2588687,0.00040357,2]
[314234528,1708109446416,-14399.9892457,0.00040357,2]
[314234530,1708109446426,-247.97750553,0.00040357,15]
[314234531,1708109446436,-6000.0,0.00040357,2]
[314234534,1708109446445,-10217.57708664,0.00040357,2]
[314234536,1708109446455,-343.23127825,0.00040357,2]
[314234537,1708109446464,-200.0,0.00040357,2]
[314234539,1708109446473,-629.18610702,0.00040357,2]
[314234541,1708109446482,-603.47375709,0.00040357,2]
[314234543,1708109446493,-206.9229548,0.00040357,2]
[314234545,1708109446503,-128323.28358671,0.00040357,2]
[314234548,1708109446512,-432.71233991,0.00040357,2]
[314234549,1708109446522,-1027.88297388,0.00040357,2]
[314234552,1708109446532,-20468.56000513,0.00040357,2]
[314234553,1708109446541,-2500.0,0.00040357,2]
[314234555,1708109446555,-558.21931804,0.00040357,2]
[314234557,1708109446566,-2292.90927331,0.00040357,2]
[314234559,1708109446577,-26781.13598091,0.00040357,2]
[314234561,1708109446592,-231.96523902,0.00040357,2]
[314234564,1708109446602,-519.42853427,0.00040357,2]
[314234566,1708109446612,-280272.65985529,0.00040357,2]
[314234568,1708109446628,-149489.84922528,0.00040357,2]
[314234570,1708109446637,-879.57731756,0.00040357,2]
[314234572,1708109446647,-26580.9319587,0.00040357,2]
[314234574,1708109446656,-9186.25397664,0.00040357,2]
[314234576,1708109446665,-464.17974762,0.00040357,2]
[314234578,1708109446675,-4502.08395463,0.00040357,4]
[314234580,1708109446684,-4430.27471929,0.00040357,10]
[314234582,1708109446694,-14667.32477428,0.00040357,2]
[314234584,1708109446703,-229.40451796,0.00040357,2]
[314234586,1708109446713,-873.53225795,0.00040357,120]
[314234588,1708109446722,-2052.87382816,0.00040357,2]
[314234590,1708109446732,-389.25368302,0.00040357,2]
[314234592,1708109446741,-527.77772237,0.00040357,2]
[314234594,1708109446751,-416.29436299,0.00040357,120]
[314234596,1708109446761,-351.08696555,0.00040357,2]
[314234598,1708109446770,-9404.83583938,0.00040357,2]
[314234600,1708109446779,-36771.64151613,0.00040357,2]
[314234602,1708109446789,-429172.91156076,0.00040357,2]
[314234744,1708109448245,-214.71807641,0.00034637,4]
[314234747,1708109448256,-222001.26604603,0.00040357,2]
[314234748,1708109448266,-1947.82464552,0.00040357,2]
[314234751,1708109448276,-1769.75881864,0.00040357,2]
[314234752,1708109448288,-204.48055045,0.00040357,120]
[314234755,1708109448298,-982.00510813,0.00040357,2]
[314234757,1708109448307,-1525.98882182,0.00040357,2]
[314234761,1708109448337,-838.96810783,0.00040357,2]
[314234767,1708109448387,-573.27155235,0.00040357,2]
[314234777,1708109469922,260000.0,0.00023,2]
[314234778,1708109469947,527.17769186,0.00023,2]
[314234779,1708109469971,150.0,0.00023,2]
[314234780,1708109469992,150.0,0.00023,2]
[314234781,1708109470015,150.0,0.00023,2]
[314234782,1708109470036,150.0,0.00023,2]
[314234783,1708109470056,150.0,0.00023,2]
[314234784,1708109470078,150.0,0.00023,2]
[314234785,1708109470098,150.0,0.00023,2]
[314234786,1708109470119,225.17769186,0.00023,2]
[314234787,1708109470147,1648029.23696962,0.00023,2]
[314234788,1708109470173,13900.0,0.00023,2]
[314234789,1708109470200,2000000.0,0.00023,2]
[314234790,1708109470226,753488.28017967,0.00023,2]
[314234791,1708109475349,3975.76940575,0.00022,30]
[314234792,1708109486639,527.17769186,0.00018,2]
[314234793,1708109486664,527.17769186,0.00018,2]
[314234794,1708109486687,480.38585917,0.00018,2]
[314234795,1708109492344,828.7366542,0.0001,2]
[314234796,1708109495291,750.26054769,0.0002,2]
[314234797,1708109521694,1500.0,0.000155,2]
[314234798,1708109521719,4749.35063186,0.000155,2]
[314234799,1708109525635,150.0,0.0002,2]
[314234800,1708109525657,150.0,0.0002,2]
[314234801,1708109525679,150.0,0.0002,2]
[314234802,1708109525702,351.67072931,0.0002,2]
[314234803,1708109527594,2247.05675366,0.000199,3]
[314234804,1708109582718,900.0,0.000225,2]
[314234805,1708109590154,205.0,9.8e-05,2]
[314234806,1708109593663,209.67659214,0.0001305,2]
[314234807,1708109630499,441837.6834345,0.00023,2]
[314234808,1708109647790,6503.48781483,0.0002,2]
[314234809,1708109650674,162.12532442,0.00012,30]
[314234810,1708109660591,155.4152334,0.00018,2]
[314234811,1708109662617,150.0,0.000137,2]
[314234815,1708110040658,1758.77956985,0.00022579,5]
[314234818,1708110310087,155.0,0.00022579,2]
[314234819,1708110330083,150.0,0.00022579,2]
[314234820,1708110330105,5.0,0.00022579,2]
[314234821,1708110359201,150.0,0.00022579,2]
[314234822,1708110359222,5.0,0.00022579,2]
[314234823,1708110375173,155.0,0.00022579,2]
[314234824,1708110395174,150.0,0.00022579,2]
[314234825,1708110395197,5.0,0.00022579,2]
[314234826,1708110401522,150.0,0.00020229,2]
[314234827,1708110401545,15.59,0.00020229,2]
[314234828,1708110421315,155.0,0.00022579,2]
[314234829,1708110442188,155.0,0.00020229,2]
[314234830,1708110464398,155.0,0.00020229,2]
[314234831,1708110483463,155.0,0.00020229,2]
[314234832,1708110501469,150.0,0.00020229,2]
[314234833,1708110501491,5.0,0.00020229,2]
[314234834,1708110515929,155.0,0.00020229,2]
[314234835,1708110533480,150.0,0.00020229,2]
[314234836,1708110533501,5.0,0.00020229,2]
[314234837,1708110549480,155.0,0.00020229,2]
[314234838,1708110574101,-745.99421342,0.00023077,2]
[314234850,1708110632499,-306.27093893,0.00023076,2]
[314234851,1708110632527,-108.33189405,0.00023076,2]
[314234852,1708110632538,-159.81159687,0.00023077,2]
[314234853,1708110632547,-1632.88808586,0.00023079,2]
[314234854,1708110632557,-5791.0,0.0002308,2]
[314234855,1708110632567,-150.0,0.00023095,2]
[314234856,1708110632576,-331.9904,0.00023097,2]
[314234857,1708110632586,-172.59291707,0.00023099,2]
[314234858,1708110632595,-395.50245846,0.000232,2]
[314234859,1708110632604,-979.17,0.00023479,2]
[314234860,1708110632613,-177.38,0.0002409,2]
[314234861,1708110632623,-150.0,0.0002409,2]
[314234862,1708110632633,-269.06572221,0.000241,2]
[314234863,1708110632643,-14536.87,0.000241,2]
[314234864,1708110632652,-150.99,0.000241,2]
[314234865,1708110632662,-326.8059298,0.0002442,2]
[314234866,1708110632671,-177.38,0.00024638,2]
[314234867,1708110632681,-200.0,0.00024928,2]
[314234868,1708110632690,-500.0,0.00025063,2]
[314234869,1708110632700,-9499.29303805,0.0002508,2]
[314234870,1708110632710,-500.0,0.00025081,2]
[314234871,1708110632720,-293.6561996,0.00025089,2]
[314234872,1708110632729,-11365.31744891,0.0002509,2]
[314234873,1708110632739,-530.42485167,0.0002509,2]
[314234874,1708110632748,-7192.31,0.0002509,2]
[314234875,1708110632757,-551.68,0.0002509,2]
[314234876,1708110632767,-2865.85,0.00025096,2]
[314234877,1708110632776,-23900.0,0.00025096,2]
[314234878,1708110632786,-152.13,0.00025105,2]
[314234879,1708110632795,-500.0,0.00025112,2]
[314234880,1708110632805,-250.0,0.00025121,2]
[314234881,1708110632814,-200.0,0.00025142,2]
[314234882,1708110632824,-354.68,0.00025186,2]
[314234883,1708110632833,-2705.0,0.00025326,2]
[314234884,1708110632843,-150.0,0.00025373,2]
[314234885,1708110632852,-250.0,0.00025378,2]
[314234886,1708110632861,-184.0,0.00025404,2]
[314234887,1708110632870,-152.38,0.00025419,2]
[314234888,1708110632880,-2535.92,0.00025429,2]
[314234889,1708110632889,-275.65220974,0.0002549,2]
[314234890,1708110632899,-324.5,0.00025505,2]
[314234891,1708110632909,-152.38,0.00025521,2]
[314234892,1708110632918,-172.85,0.00025583,2]
[314234893,1708110632928,-250.0,0.00025619,2]
[314234894,1708110632937,-152.38,0.00025622,2]
[314234895,1708110632946,-169.84,0.00025629,2]
[314234896,1708110632956,-8743.56,0.00025632,2]
[314234897,1708110632966,-1000.0,0.00025639,2]
[314234898,1708110632975,-958.78,0.00025646,2]
[314234899,1708110632985,-152.38,0.00025724,2]
[314234900,1708110632994,-548.96,0.0002573,2]
[314234901,1708110633003,-979.17,0.00025742,2]
[314234902,1708110633013,-177.12,0.00025744,2]
[314234903,1708110633021,-152.38,0.00025826,2]
[314234904,1708110633031,-200.0,0.00025844,2]
[314234905,1708110633040,-500.0,0.00025869,2]
[314234906,1708110633050,-152.38,0.00025928,2]
[314234907,1708110633059,-2000.0,0.00025966,2]
[314234908,1708110633069,-610.37709392,0.0002597,2]
[314234909,1708110633078,-4197.8526873,0.00026,2]
[314234910,1708110633088,-202.27357732,0.00026,2]
[314234911,1708110633097,-499.99,0.00026,2]
[314234912,1708110633107,-152.38,0.0002603,2]
[314234913,1708110633116,-1599.92,0.0002607,2]
[314234914,1708110633126,-150.0,0.00026079,2]
[314234915,1708110633135,-152.38,0.00026132,2]
[314234916,1708110633145,-152.38,0.00026234,2]
[314234917,1708110633154,-9674.48442605,0.000263,2]
[314234918,1708110633164,-152.38,0.00026336,2]
[314234919,1708110633174,-23251.6497212,0.000264,2]
[314234920,1708110633183,-152.38,0.00026438,2]
[314234921,1708110633193,-152.38,0.00026539,2]
[314234922,1708110633203,-152.38,0.00026641,2]
[314234923,1708110633212,-225.0,0.00026659,2]
[314234924,1708110633221,-152.38,0.00026743,2]
[314234925,1708110633231,-170.29,0.00027024,2]
[314234926,1708110633240,-177.12,0.00027113,2]
[314234927,1708110633250,-1521.56450762,0.000272,2]
[314234928,1708110633259,-958.78,0.0002729,2]
[314234929,1708110633269,-174.53,0.00027397,2]
[314234930,1708110633279,-186.81097128,0.000275,2]
[314234931,1708110633288,-152.13,0.00027615,2]
[314234932,1708110633297,-167.43,0.00027855,2]
[314234933,1708110633307,-285.65888179,0.000279,2]
[314234934,1708110633316,-43494.79971123,0.00028,2]
[314234935,1708110633336,-942.7732,0.00028,2]
[314234936,1708110633347,-4636.2505,0.00028,2]
[314234937,1708110633357,-1335.3442,0.00028,2]
[314234938,1708110633367,-979.17,0.00028006,2]
[314234939,1708110633377,-225.0,0.00028029,2]
[314234940,1708110633386,-91503.63222689,0.000281,2]
[314234941,1708110633396,-174.53,0.0002811,2]
[314234942,1708110633406,-250.16,0.00028182,2]